Cogmind - Beta 13 @@@ ROGUE MODE // 2024.06.01 @ 19:02:43 Player: Blade Result: Destroyed by G-47 Trooper with Particle Gun Performance ------------- Evolutions (2) 1000 Regions Visited (3) 600 Robots Destroyed (36) 180 Value Destroyed (963) 963 Prototype IDs (1) 20 Alien Tech Used (0) 0 Bonus (15) 15 TOTAL SCORE: 2778 Bonus ------- High Alert Combat Kills 15 Cogmind --------- Core Integrity 0/550 Matter 285/300 Energy 0/100 System Corruption 0% Temperature Hot (263) Movement Core (500) Ox9 Location -8/Materials Parts ------- > --- POWER (1) -------- (None) > --- PROPULSION (4) --- (None) > --- UTILITY (2) ------ Large Storage Unit > --- WEAPON (4) ------- Heavy Laser Ion Cannon > --- INVENTORY (15) --- High-capacity Matter Pod (136) Trap Scanner Improved Sensor Array Mining Claw Peak State ------------ > --- POWER ------------ Light Nuclear Core > --- PROPULSION ------- Armored Wheel Armored Wheel > --- UTILITY ---------- Large Storage Unit Medium Armor Plating > --- WEAPON ----------- Assault Rifle Light Assault Rifle Improved Assault Rifle Improved Assault Rifle > --- INVENTORY -------- Ion Engine Aluminum Leg Aluminum Leg High-capacity Matter Pod Trap Scanner Improved Sensor Array [Rating: 19] Favorites ----------- Power Light Nuclear Core Engine Ion Engine Power Core Light Nuclear Core Propulsion Armored Wheel Treads Light Treads Leg Aluminum Leg Wheel Armored Wheel Utility Large Storage Unit Storage Large Storage Unit Protection Medium Armor Plating Weapon Improved Assault Rifle Energy Gun Small Laser Energy Cannon Ion Cannon Ballistic Gun Improved Assault Rifle Build | -11 -10 -9 -8 ------- Run | Yrd Mat Mat Mat Slots Evolved 4 | . . 2 2 Power . | . . . . Propulsion 2 | . . . 2 Utility . | . . . . Weapon 2 | . . 2 . Parts Attached 25 | . 6 7 12 Power 2 | . 1 . 1 Engine 1 | . . . 1 Core 1 | . 1 . . Reactor . | . . . . Propulsion 11 | . 4 3 4 Treads 3 | . 2 1 . Leg 4 | . . . 4 Wheel 4 | . 2 2 . Hover . | . . . . Flight . | . . . . Utility 2 | . 1 1 . Device . | . . . . Storage 1 | . 1 . . Processor . | . . . . Hackware . | . . . . Protection 1 | . . 1 . Artifact . | . . . . Weapon 10 | . . 3 7 Energy Gun 2 | . . . 2 Energy Cannon 1 | . . . 1 Ballistic Gun 7 | . . 3 4 Ballistic Cannon . | . . . . Launcher . | . . . . Special Weapon . | . . . . Impact Weapon . | . . . . Slashing Weapon . | . . . . Piercing Weapon . | . . . . Special Melee Weapon . | . . . . Unidentified Prototypes 1 | . . 1 . Parts Lost 21 | . 4 1 16 Power 3 | . 1 . 2 Propulsion 8 | . 2 . 6 Utility 1 | . . . 1 Weapon 9 | . 1 1 7 Highest Loss Streak 12 | . 3 1 12 To Critical Strikes 1 | . 1 . . Average Slot Usage (%) 71 | . 86 80 60 Engine 3 | . 9 . . Core 5 | . 2 11 5 Treads 2 | . 5 2 . Leg 4 | . 5 . 4 Wheel 12 | . 12 19 10 Storage 14 | . 25 11 9 Protection 2 | . . 6 3 Energy Gun 10 | . 23 8 4 Ballistic Gun 15 | . . 22 21 Naked Turns . | . . . . Heaviest Build 41 | 12 32 39 41 Greatest Support 40 | 20 40 40 24 Greatest Overweight (x) 8 | . 8 2 8 Average Overweight (x) . | . . . 1 Largest Inventory Capacity 15 | 8 15 15 15 Average Capacity 14 | 8 13 15 15 Most Carried 7 | 6 6 4 7 Average Carried 4 | 6 5 3 4 Final Capacity 15 | 8 15 15 15 Final Carried 6 | 6 4 3 4 Class Distribution -------------------- 50% | Mutant 29% | Tank 13% | Gunner 6% | Scavenger-Mutant Dominant Class ---------------- Mutant | -10/Materials Tank | -9/Materials Tank | -8/Materials Resources | -11 -10 -9 -8 ----------- Run | Yrd Mat Mat Mat Matter Collected 833 | 200 50 134 449 Remotely . | . . . . Salvage Created 1228 | . 308 295 625 Parts 73 | . 20 19 34 Haulers Intercepted 1 | . . . 1 Recyclers Shooed 1 | . . . 1 Parts Field Recycled . | . . . . Retrieved Matter . | . . . . Parts Self-Destructed . | . . . . Prevented . | . . . . Kills | -11 -10 -9 -8 ------- Run | Yrd Mat Mat Mat Combat Hostiles Destroyed 35 | . 11 7 17 Guns 35 | . 11 7 17 Classes Destroyed 5 | . 2 1 2 Hauler 1 | . . . 1 Swarmer 15 | . 6 . 9 Grunt 17 | . 5 6 6 Brawler 1 | . . 1 . Sentry 2 | . . . 2 Best Kill Streak 6 | . 6 5 5 Combat Bots Only 6 | . 6 5 5 Max Kills in Single Turn 2 | . 1 2 1 Gunslinging 1 | . . 1 . Exploded . | . . . . Melee . | . . . . Uniques/NPCs Destroyed . | . . . . Combat | -11 -10 -9 -8 -------- Run | Yrd Mat Mat Mat Hostile Shots Fired 253 | . 65 20 168 Missed 50 | . 15 5 30 Damage Taken 2746 | . 486 252 2008 Core 695 | . 121 11 563 Absorbed by Shields . | . . . . Core Remaining (%) 82 | 100 51 97 . Volleys Fired 123 | . 39 14 70 Largest 4 | . 2 4 4 Hottest 194 | . 80 103 194 Shots Fired 265 | . 67 43 155 Gun 263 | . 67 43 153 Cannon 2 | . . . 2 Launcher . | . . . . Special . | . . . . Kinetic 173 | . . 39 134 Thermal 92 | . 67 4 21 Explosive . | . . . . Electromagnetic . | . . . . Robot Hit Streak 18 | . 7 6 18 Robot Miss Streak 6 | . 6 3 3 Penetration Max . | . . . . Secondary Targets 8 | . 4 1 3 Max Gunslinging Chain 1 | . 1 1 1 Shots Hit Robots 166 | . 39 27 100 Core Hits 69 | . 18 13 38 Critical Kills . | . . . . Critical Parts Destroyed . | . . . . Critical Strikes . | . . . . Melee Attacks . | . . . . Impact . | . . . . Slashing . | . . . . Piercing . | . . . . Sneak Attacks . | . . . . Combat Hostiles . | . . . . Follow-up Attacks . | . . . . Damage Inflicted 2059 | . 436 315 1308 Guns 1974 | . 431 313 1230 Cannons 48 | . . . 48 Explosions . | . . . . Melee . | . . . . Ramming 37 | . 5 2 30 Kinetic 1297 | . . 291 1006 Thermal 725 | . 431 22 272 Explosive . | . . . . Electromagnetic . | . . . . Impact . | . . . . Slashing . | . . . . Piercing . | . . . . Highest Corruption . | . . . . Average Corruption . | . . . . Corruption Purged . | . . . . Corruption Blocked . | . . . . Overload Shots . | . . . . Overflow Damage . | . . . . Projectiles . | . . . . Explosions . | . . . . Melee . | . . . . Knockbacks 1 | . 1 . . Impact 1 | . 1 . . Kinetic . | . . . . Secondary . | . . . . Self-Inflicted Damage 15 | . 2 1 12 Shots . | . . . . Rammed 9 | . 2 1 6 Targets Rammed 10 | . 2 1 7 Kicked 1 | . . . 1 Crushed . | . . . . Highest Temperature 318 | . 318 159 245 Average Temperature 80 | . 122 85 42 Received Heat Transfer 1215 | . 141 75 999 Effects 1 | . . . 1 Energy Bleed 1 | . . . 1 Siege Activations . | . . . . Robots Corrupted . | . . . . Combat Hostiles . | . . . . Parts Fried . | . . . . Impact Corruptions . | . . . . Robots Melted . | . . . . Combat Hostiles . | . . . . Parts Melted 1 | . 1 . . Heat Transferred 1543 | . 975 50 518 Parts Sabotaged . | . . . . Parts Stolen . | . . . . Parts Stripped . | . . . . Power Chain Reactions . | . . . . Alert | -11 -10 -9 -8 ------- Run | Yrd Mat Mat Mat Peak Influence 445 | . 264 301 445 Initial 126 | . . 111 126 Average 204 | . 116 176 264 Maximum Alert Level 2 | . 1 1 2 Low Security (%) 49 | 100 72 76 27 Level 1 48 | . 27 23 69 Level 2 1 | . . . 3 Level 3 . | . . . . Level 4 . | . . . . Level 5 . | . . . . High Security . | . . . . Max Security . | . . . . Squads Dispatched 6 | . 1 1 4 Investigation 1 | . . . 1 Extermination . | . . . . Reinforcement 3 | . 1 1 1 Assault . | . . . . Garrison 2 | . . . 2 Intercept . | . . . . Searches Triggered . | . . . . Construction Impeded . | . . . . Haulers Reinforced . | . . . . Active Scanning Responses . | . . . . Cargo Convoy Interrupts . | . . . . Stealth | -11 -10 -9 -8 --------- Run | Yrd Mat Mat Mat Distress Signals 2 | . 1 . 1 Communications Jammed . | . . . . Distress Signals . | . . . . Times Spotted 50 | . 14 9 27 Peak Tracking Total 7 | . 7 4 6 Tactical Retreats 1 | . . . 1 Traps | -11 -10 -9 -8 ------- Run | Yrd Mat Mat Mat Traps Triggered 1 | . . . 1 Indirectly . | . . . . Trap Hack Attempts . | . . . . Triggered . | . . . . Disarmed . | . . . . Reprogrammed . | . . . . Reused . | . . . . Traps Extracted . | . . . . Installed . | . . . . Triggered . | . . . . Machines | -11 -10 -9 -8 ---------- Run | Yrd Mat Mat Mat Machines Disabled . | . . . . Max in Single Turn . | . . . . Garrison Access 1 | . . . 1 Machines Repaired . | . . . . Machines Dismantled . | . . . . Machines Sabotaged . | . . . . Overloaded Fab Kills . | . . . . Hacking | -11 -10 -9 -8 --------- Run | Yrd Mat Mat Mat Machines Accessed 9 | . 1 1 7 Terminals 6 | . 1 1 4 Fabricators . | . . . . Repair Stations . | . . . . Recycling Units 2 | . . . 2 Scanalyzers . | . . . . Garrison Access 1 | . . . 1 Total Hacks 16 | . 2 1 13 Successful 10 | . 1 . 9 Failed 6 | . 1 1 4 Catastrophic 1 | . . 1 . Database Lockouts . | . . . . Manual 8 | . 2 1 5 Terminals 9 | . 2 1 6 Fabricators . | . . . . Repair Stations . | . . . . Recycling Units 4 | . . . 4 Scanalyzers . | . . . . Garrison Access 3 | . . . 3 Terminal Hacks 2 | . . . 2 Terminal Index 1 | . . . 1 Zone Layout 1 | . . . 1 Fabricator Hacks . | . . . . Repair Station Hacks . | . . . . Recycling Unit Hacks 3 | . . . 3 Retrieve Matter 3 | . . . 3 Scanalyzer . | . . . . Garrison Access Hacks 1 | . . . 1 Seal Access 1 | . . . 1 Unauthorized Hacks 4 | . 1 . 3 Terminals 4 | . 1 . 3 Botnet 4 | . 1 . 3 Fabricators . | . . . . Repair Stations . | . . . . Recycling Units . | . . . . Scanalyzers . | . . . . Garrison Access . | . . . . Data Cores Recovered . | . . . . Used . | . . . . Hacking Detections 7 | . 1 1 5 Full Trace Events . | . . . . Feedback Events . | . . . . Feedback Blocked . | . . . . Robot Schematics Acquired . | . . . . Robots Built . | . . . . Authchips . | . . . . Time . | . . . . Total Robot Build Rating . | . . . . Part Schematics Acquired . | . . . . Parts Built . | . . . . Authchips . | . . . . Time . | . . . . Total Part Build Rating . | . . . . Parts Repaired . | . . . . Time . | . . . . Parts Recycled . | . . . . Recycled Matter . | . . . . Retrieved Matter . | . . . . Retrieved Components . | . . . . Parts Scanalyzed . | . . . . Part Schematics Acquired . | . . . . Parts Damaged . | . . . . Bothacking | -11 -10 -9 -8 ------------ Run | Yrd Mat Mat Mat Used RIF Installer . | . . . . Robots Hacked . | . . . . Non-combat . | . . . . Combat . | . . . . Robot Hacks Applied . | . . . . Relay Couplers Released . | . . . . Fabnet Peak Effective % . | . . . . Robots Rewired . | . . . . Allies Hacked . | . . . . Hacks Repelled . | . . . . Allies | -11 -10 -9 -8 -------- Run | Yrd Mat Mat Mat Total Allies . | . . . . Largest Group . | . . . . Highest-Rated Group . | . . . . Highest-Rated Ally . | . . . . Total Orders . | . . . . Ally Attacks . | . . . . Total Damage . | . . . . Kills . | . . . . Allies Corrupted . | . . . . Allies Melted . | . . . . Intel | -11 -10 -9 -8 ------- Run | Yrd Mat Mat Mat Robot Analysis Total . | . . . . Derelict Logs Recovered . | . . . . Drone Launches . | . . . . Drone Recoveries . | . . . . Exploration | -11 -10 -9 -8 ------------- Run | Yrd Mat Mat Mat Turns Passed 1295 | 2 384 235 674 Spaces Moved 721 | 2 217 157 345 Core 6 | . 4 . 2 Treads 56 | . 43 13 . Legs 136 | 2 62 . 72 Wheels 523 | . 108 144 271 Hover . | . . . . Flight . | . . . . Fastest Speed 95 | 120 95 105 105 Average Speed 123 | 120 122 110 130 Slowest Speed 450 | 120 450 240 450 Overloaded Moves . | . . . . Propulsion Burnouts . | . . . . Robots Hopped . | . . . . Cave-ins Triggered . | . . . . Exploration Rate (%) 19 | 2 33 16 26 Regions Visited 3 Branch Regions . Pre-discovered Areas . | . . . . Known Exits Taken . | . . . . Unknown Exits Taken 3 | 1 1 1 . Scrap Searched . | . . . . Spaces Dug . | . . . . Terrain Destroyed . | . . . . Melee . | . . . . Projectile . | . . . . AOE . | . . . . Terrain Rammed . | . . . . Walls Destroyed . | . . . . Machines Disabled . | . . . . Actions | -11 -10 -9 -8 --------- Run | Yrd Mat Mat Mat Total 916 | 1 266 188 461 Wait 32 | . 2 7 23 Move 718 | 1 216 156 345 Hop . | . . . . Pick Up 4 | . . . 4 Fast Attach 15 | . 2 6 7 Attach 7 | . 2 1 4 Detach . | . . . . Swap 3 | . 2 . 1 Drop 4 | . 1 3 . Fire 123 | . 39 14 70 Melee . | . . . . Ram 9 | . 2 1 6 Kick 1 | . . . 1 Crush . | . . . . Escape Stasis . | . . . . Rewire . | . . . . Trap . | . . . . Miscellaneous . | . . . . Route ------- -11/Scrapyard -10/Materials -9/Materials -8/Materials History --------- Turn | Location | Event 1 | -11/Scrapyard | Discovered new exit (range 1) 3 | -11/Scrapyard | Entered Materials 312 | -10/Materials | Lost 3 parts (1p1n1w) 331 | -10/Materials | Build established: Mutant 335 | -10/Materials | Discovered new exit (range 16) 387 | -10/Materials | Entered another Materials area 387 | -9/Materials | Evolved 2 slots: Weapon x2 606 | -9/Materials | Discovered new exit (range 5) 622 | -9/Materials | Entered another Materials area 622 | -8/Materials | Evolved 2 slots: Propulsion x2 801 | -8/Materials | Build established: Tank 985 | -8/Materials | Garrison activated, responded to threat 1089 | -8/Materials | Core integrity fell below 50% 1128 | -8/Materials | Lost 12 parts (2p4n6w) 1258 | -8/Materials | Core integrity fell below 20% 1296 | -8/Materials | Destroyed by G-47 Trooper with Particle Gun Last Messages --------------- 01207_ K-01 Serf cleans the Nuclear Reactor. 01218_ Connecting with Terminal... >>Trojan(Botnet) Trojan loaded successfully. Testing... Terminal linked with 1 system. Awaiting botnet instructions. 01219_ K-01 Serf cleans the Nuclear Reactor. 01224_ Connecting with Terminal... >>Trojan(Botnet) Trojan loaded successfully. Testing... Terminal linked with 2 systems. Awaiting botnet instructions. 01247_ Aluminum Leg destroyed. 01286_ Acquired Ion Cannon. 01288_ Aluminum Leg destroyed. 01292_ Particle Gun destroyed. 01296_ Overheating: Energy bleed (-2). Map ----- +----------------------------------------------------+ | ?????# """" #! """ ### #?? | | ?????# # "Y" / #?? | | ?????# ""T"" # = ### ##### ###### #?? | | ?????# """"" # #?# #???# #?##########?? | | #????# != # ! #?# #???# # ????? | | ##########"######+####### #???# # """"??????? | | [ #???# / """""??????? | | #???# # """ "?????? | | #???# #?? ????? | | ###+########### ########???# #????#####???? | | # ## ######?????# #########????? | | # "" ##!!!!]]# ?????# + #????? | | # =/ T" ##!!!!]]# ?????# ## """ #????? | | # / "" ######### ?????+ ##[=""" #????? | | # / #???????# ?????# ##=%""" #????? | | # #???????# ?????# %## *%! #????? | | ##############???????############! ##[! =! #????? | | #???????????????# ! # ###+#######?? | | !#???????????????# # ! =!= ### | | #???????????????#""" + ^=%%= "" | | !!! #???????????????#""" # ^ =% * G" | | !!! #???????????????#""" [ # """ "" | | !!! #???????????????#""" # """^ ### | | #######???????????????#""" # """^ ^! #?? | | ??????????????????????# g # !!// ### | | ??????????????????????# @ g # !/ | | ??????????????????????########+# ! [ | | ?????????????????????????????# | | ?????????????????????????????# #"T"#T#####+## | | ?????????????????????????????### #######???? ? | | ???????????????????????????????# #???????? | | ???????????????????????????????#! !#???????? | | ???????????????????????????????##!!!!##???????? ? | | ????????????????????????????????######????????? ?? | | ?????????????????????????????????????????????????? | | ?????????????????????????????????????????????????? | | ?????????????????????????????????????????????????? | | ?????????????????????????????????????????????????? | | ?????????????????????????????????????????????????? | | ?????????????????????????????????????????????????? | | | | | | | | | | | | | | | | | | | | | +----------------------------------------------------+ Best States ------------- Heat Dissipation 31 Energy Generation 14 Energy Capacity 250 Matter Stores 300 Matter Capacity 300 Sight Range 16 Terrain Scan Density 10 Armor Coverage 225 Evasion (%) 55 Recoil Reduction 2 Item Schematics ----------------- None Robot Schematics ------------------ None Fabricated ------------ Nothing Alien Tech Used ----------------- None Achievements -------------- None Challenges ------------ None Game ------ Seed FieldVortexFilter Manual? 0 Play Time 00:12:06 Cumulative 75.4 hours Start 2024.06.01 @ 18:52:31 End 2024.06.01 @ 19:02:43 Sessions 1 Manual Loads 0 Difficulty Rogue Special Mode None Game No. 105 Rogue 21 Adventurer 79 Explorer 5 Win Type - Total 2 Types 2/0/0/0/0/0/0/0/0 Lore% 40 Gallery% 51 Achievement% 39 Wizard Run 0 Options --------- Layout 1 ASCII 0 Keyboard 0 Movement Arrows Keybinds 0 Fullscreen 2 Font 24/Smallcaps Map View 50x35 Zoom Use 0% Tactical HUD 1 Map Filters NONE Filters NONE Steam 1 RUN: 59636735-34ba-4879-8313-92a68e514f6f